bitfinex/quotes_ETHUSD_20241123
["timestamp","ask_amount","ask_price","bid_price","bid_amount"]
[1732381560796,7.27642857,3390.4,3389.8,0.55]
[1732381560991,7.27642857,3390.4,3389.7,0.55]
[1732381561206,7.27642857,3390.4,3389.8,0.02949231]
[1732381561545,2.94579,3394.7,3389.8,0.02949231]
[1732381561546,7.27642857,3391.1,3390.2,0.55]
[1732381561746,7.27642857,3391.1,3389.3,0.62131786]
[1732381561747,7.27642857,3391.0,3377.0,14.04931776]
[1732381561892,7.27642857,3390.9,3390.0,3.08368319]
[1732381562091,7.27642857,3390.8,3387.9,0.2922]
[1732381562328,7.31329418,3390.7,3388.9,3.08368319]
[1732381562588,7.31329418,3390.7,3386.7,0.24201795]
[1732381562589,0.7756,3390.5,3389.0,0.01475073]
[1732381562790,7.27642857,3388.9,3388.0,3.08368319]
[1732381563109,7.27642857,3388.8,3388.0,0.30836832]
[1732381563368,7.27642857,3388.8,3387.0,0.0147811]
[1732381563369,7.27642857,3388.7,3387.2,3.08368319]
[1732381563623,7.27642857,3388.6,3387.3,0.01479159]
[1732381563808,1.183968,3389.0,3386.8,3.08368319]
[1732381563809,7.27642857,3388.5,3386.8,3.08368319]
[1732381564139,7.27642857,3388.4,3386.9,0.32316564]
[1732381564338,10.27642857,3388.3,3386.9,0.01479732]
[1732381564626,0.1,3388.4,3386.3,3.08368319]
[1732381564627,7.27642857,3388.2,3386.3,3.08368319]
[1732381564788,7.27642857,3388.1,3386.8,0.7731]
[1732381564990,4.283968,3389.0,3386.8,0.7731]
[1732381564991,7.27642857,3388.0,3386.9,0.0148011]
[1732381565515,7.27642857,3388.0,3386.8,0.78789973]
[1732381565717,7.27642857,3387.9,3387.0,0.01479973]
[1732381566222,7.27642857,3387.9,3386.9,0.01480606]
[1732381566425,7.27642857,3387.9,3386.9,0.01481307]
[1732381566591,0.03689704,3387.8,3385.6,0.01481098]
[1732381566792,7.27642857,3387.7,3385.6,0.01481098]
[1732381567043,7.27642857,3387.6,3385.6,0.01481098]
[1732381567203,7.31332857,3387.5,3385.6,0.01481098]
[1732381567404,8.16842857,3387.4,3385.6,0.01481098]
[1732381567641,0.03690873,3387.3,3385.0,0.01483437]
[1732381567792,8.06842857,3387.4,3385.0,0.01483437]
[1732381567996,7.27642857,3387.4,3384.4,0.8159]
[1732381568194,7.27642857,3387.4,3384.2,0.24239259]
[1732381568195,7.27642857,3387.3,3384.7,0.2941]
[1732381568396,7.27642857,3387.3,3384.9,0.8159]
[1732381568723,7.27642857,3387.3,3385.0,0.56482513]
[1732381568907,7.27642857,3387.3,3385.1,0.8159]
[1732381569235,7.27642857,3387.2,3385.2,0.56482117]
[1732381569637,0.03690345,3387.1,3385.2,0.56482117]
[1732381569844,8.00407143,3387.2,3385.2,0.01482117]
[1732381570165,7.27642857,3387.1,3385.2,0.01482117]
[1732381570510,0.862,3387.0,3385.2,0.01482117]
[1732381570726,0.1,3386.7,3385.2,0.01482117]
[1732381571143,0.03691501,3386.6,3385.2,0.01482117]
[1732381571345,6.4457074,3385.0,3383.3,1.70978375]
[1732381571548,0.1,3386.7,3383.4,0.17097838]
[1732381571549,6.4457074,3384.9,3383.4,0.17097838]
[1732381571724,0.762,3387.0,3383.5,0.2941]
[1732381571921,0.762,3387.0,3383.4,0.41337097]
[1732381571922,8.89,3386.9,3383.6,0.53582547]
[1732381572453,8.89,3386.9,3383.7,0.55]
[1732381572608,8.89,3386.9,3383.6,0.53582547]
[1732381572942,9.8652,3386.9,3383.7,0.44688039]
[1732381573144,8.89,3386.9,3383.7,0.44688039]
[1732381574257,0.1,3386.6,3383.8,0.0611]
[1732381574455,8.89,3386.5,3383.8,0.0611]
[1732381575026,8.88868396,3386.5,3383.8,0.0611]
[1732381575668,8.88868396,3386.5,3384.1,0.55]
[1732381575874,8.88868396,3386.5,3384.9,0.6111]
[1732381576067,8.88868396,3386.4,3384.9,0.6111]
[1732381578163,3.0,3387.7,3384.9,0.6111]
[1732381578164,8.88868396,3386.3,3384.9,0.55]
[1732381578426,8.33868396,3386.3,3385.3,0.55]
[1732381578550,0.7633,3387.7,3385.3,0.0611]
[1732381578551,8.33868396,3386.2,3385.3,0.0611]
[1732381579071,8.04498396,3386.2,3385.4,0.3552]
[1732381579236,8.04498396,3386.1,3385.9,0.2941]
[1732381579578,8.04498396,3386.0,3385.9,0.2941]
[1732381580651,8.04498396,3386.0,3385.9,0.8441]
[1732381580830,7.49498396,3386.0,3385.9,0.8441]
[1732381581028,6.06574081,3386.0,3385.9,0.8441]
[1732381581969,6.06574081,3386.0,3385.9,0.9052]
[1732381582269,8.89,3387.6,3385.9,0.9052]
[1732381582431,8.89,3387.6,3386.9,3.0]
[1732381582643,0.2,3389.1,3387.0,0.2941]
[1732381582644,8.89,3388.2,3387.0,0.2941]
[1732381582868,8.89,3388.2,3387.4,0.2941]
[1732381583046,8.89,3388.7,3387.6,0.2941]
[1732381583252,8.89,3388.7,3387.8,0.2941]
[1732381583458,8.89,3388.6,3388.3,0.2941]
[1732381583689,8.89,3388.6,3385.9,2.02228208]
[1732381583690,8.89,3389.7,3388.5,0.2941]
[1732381583974,8.89,3389.7,3388.5,0.55]
[1732381584535,8.89,3389.7,3389.3,0.55]
[1732381584734,8.89,3390.7,3389.5,0.55]
[1732381584938,0.7633,3389.9,3389.5,0.55]
[1732381585175,8.34,3389.2,3388.1,0.0611]
[1732381585373,8.34,3389.1,3388.1,0.0611]
[1732381585675,8.34,3389.1,3386.0,0.0611]
[1732381585676,9.174,3389.1,3386.0,0.0611]
[1732381585877,0.7633,3389.9,3385.9,1.47228208]
[1732381585878,8.34,3389.0,3386.2,0.2941]
[1732381586098,9.174,3388.9,3386.3,0.0611]
[1732381586296,8.34,3388.8,3386.3,0.0611]
[1732381587295,8.34,3388.7,3386.0,0.0611]
[1732381587596,8.34,3388.6,3386.0,0.0611]
[1732381587799,9.174,3388.6,3386.0,0.0611]
[1732381588005,9.174,3388.6,3385.7,1.74079442]
[1732381588006,8.34,3388.6,3385.7,1.74079442]
[1732381588161,8.34,3388.5,3386.0,1.74742506]
[1732381588506,8.34,3389.3,3386.6,0.2941]
[1732381588793,8.34,3389.3,3387.1,0.8441]
[1732381588994,8.34,3390.5,3387.1,0.8441]
[1732381589312,8.34,3390.4,3389.7,0.55]
[1732381589592,0.8082,3391.1,3389.7,0.55]
[1732381589593,8.34,3390.3,3389.7,0.55]
[1732381589758,8.34,3390.2,3389.7,0.55]
[1732381590693,7.79,3391.0,3389.7,0.55]
[1732381590901,7.82685995,3390.9,3389.7,0.55]
[1732381591056,7.79,3390.9,3389.7,0.55]
[1732381591415,0.13686419,3390.8,3387.8,3.2941]
[1732381591570,7.79,3390.7,3387.6,1.42544673]
[1732381592016,7.79,3390.7,3387.7,1.73121944]
[1732381592156,7.79,3390.7,3387.7,1.97361203]
[1732381592360,7.79,3390.7,3387.7,1.73121944]
[1732381592794,7.79,3390.7,3387.8,0.55]
[1732381592994,7.79,3390.7,3387.8,3.55]
[1732381593158,7.79,3390.7,3387.8,0.55]
[1732381593770,7.79,3390.7,3388.1,0.2941]
[1732381594110,0.8082,3391.1,3388.1,0.2941]
[1732381594111,7.79,3390.6,3389.8,0.2941]
[1732381594409,7.79,3390.5,3390.1,0.8441]
[1732381595073,7.79,3390.5,3390.1,0.55]
[1732381596177,8.89,3391.3,3390.9,0.55]
[1732381596374,8.89,3392.0,3390.9,0.55]
[1732381596770,9.85982,3392.0,3390.9,0.55]
[1732381597251,9.85982,3392.0,3388.8,3.0]
[1732381597252,8.89,3392.0,3391.0,0.2941]
[1732381597376,0.8082,3392.7,3391.1,0.8441]
[1732381597712,8.89,3392.6,3391.1,0.8441]
[1732381597898,8.89,3392.5,3391.1,1.21226786]
[1732381598117,8.89,3392.5,3391.5,0.2941]
[1732381598409,8.89,3392.5,3392.3,0.2941]
[1732381598721,8.89,3393.2,3392.4,0.8441]
[1732381598871,0.8082,3393.8,3392.4,0.55]
[1732381598872,8.89,3393.7,3392.4,0.55]
[1732381599075,0.96982,3393.6,3392.4,0.55]
[1732381599319,0.1,3393.5,3392.4,0.55]
[1732381599474,0.1,3393.2,3391.1,0.36816786]
[1732381599674,0.1,3393.2,3386.6,14.09]
[1732381599675,0.8082,3392.8,3389.7,0.36816786]
[1732381599973,8.89,3392.8,3390.2,0.64734599]
[1732381600325,8.89,3392.8,3390.6,0.2941]
[1732381600608,8.86862115,3393.8,3390.7,1.2920318]
[1732381600813,8.86862115,3393.7,3390.9,0.2941]
[1732381600974,8.86862115,3393.7,3389.6,0.7423035]
[1732381600975,8.86862115,3393.7,3391.4,0.8441]
[1732381601176,8.86862115,3394.5,3391.6,0.55]
[1732381601411,8.86862115,3394.4,3391.8,0.8441]
[1732381601717,8.86862115,3395.2,3392.4,0.2941]
[1732381601912,8.86862115,3395.1,3392.5,0.62976394]
[1732381602125,8.86862115,3395.1,3392.8,0.8441]
[1732381602414,8.86862115,3395.1,3393.0,0.55]
[1732381602615,8.86862115,3395.1,3393.2,0.55]
[1732381602792,8.86862115,3395.1,3392.5,0.73659211]
[1732381602793,0.1,3394.8,3392.5,0.73659211]
[1732381602976,9.84630327,3394.7,3392.1,1.46553931]
[1732381603318,0.1,3394.5,3392.3,1.40222653]
[1732381603488,9.76548326,3394.4,3392.2,0.36816786]
[1732381603813,8.86862115,3394.4,3392.2,0.36816786]
[1732381604413,0.1,3393.5,3391.0,0.36816786]
[1732381604711,8.86862115,3393.4,3391.6,0.36816786]
[1732381604875,0.89686211,3393.3,3391.6,0.36816786]
[1732381606010,0.89686211,3393.3,3391.0,0.36816786]
[1732381606011,8.96862115,3393.2,3391.0,0.36816786]
[1732381606182,0.8082,3393.1,3391.0,0.36816786]
[1732381606383,8.86862115,3393.0,3391.0,0.36816786]
[1732381606584,8.86862115,3393.0,3391.1,0.35324599]
[1732381606811,8.86862115,3393.0,3391.2,0.36816786]
[1732381607015,9.75548326,3393.0,3391.2,0.36816786]
[1732381607602,9.75548326,3393.0,3391.3,0.55]
[1732381607790,9.75548326,3393.0,3391.4,0.36816786]
[1732381608020,9.75548326,3393.0,3391.5,0.55]
[1732381608387,9.75548326,3393.0,3391.5,0.91816786]
[1732381608610,0.1,3392.6,3390.3,0.74391555]
[1732381608781,8.86862115,3392.5,3390.4,0.36816786]
[1732381608987,0.1,3392.4,3390.4,0.36816786]
[1732381609323,8.86862115,3392.5,3390.4,0.36816786]
[1732381609618,0.1,3392.4,3390.4,0.36816786]
[1732381609914,8.86862115,3392.5,3390.4,0.36816786]
[1732381610125,0.1,3392.4,3390.4,0.66226786]
[1732381610416,8.86862115,3392.5,3390.5,0.36816786]
[1732381610601,8.86862115,3392.5,3390.6,0.7522]
[1732381610781,8.86862115,3392.5,3390.7,0.36816786]
[1732381610983,8.86862115,3392.5,3390.8,0.55]
[1732381611225,8.86862115,3392.5,3391.8,3.0]
[1732381611434,8.86862115,3392.4,3391.9,0.55]
[1732381611715,8.86862115,3392.4,3391.7,0.55]
[1732381611927,8.86862115,3392.3,3391.7,0.55]
[1732381612082,8.86862115,3392.2,3391.7,0.55]
[1732381612290,8.86862115,3392.1,3391.7,0.55]
[1732381612729,8.86862115,3392.1,3390.4,1.12036786]
[1732381613031,8.86862115,3392.0,3391.1,0.7522]
[1732381613205,8.86862115,3391.9,3391.2,0.36816786]
[1732381613400,8.86862115,3391.9,3391.1,0.7522]
[1732381613603,8.96862115,3391.9,3390.7,0.36816786]
[1732381613817,0.1,3391.4,3390.1,0.7522]
[1732381614021,8.86862115,3391.3,3389.6,0.7522]
[1732381614223,0.1,3391.4,3389.6,0.7522]
[1732381614224,0.1,3391.0,3389.7,0.36816786]
[1732381614424,0.8322,3390.9,3389.7,0.36816786]
[1732381614940,0.02190981,3390.6,3389.1,0.7522]
[1732381615093,8.86862115,3390.5,3389.4,0.36816786]
[1732381616292,8.86144339,3390.5,3389.4,0.36816786]
[1732381616545,8.86144339,3390.4,3389.8,3.0]
[1732381616693,8.86144339,3390.3,3389.4,0.36816786]
[1732381617033,0.1,3392.3,3389.4,0.36816786]
[1732381617034,8.31144339,3390.6,3389.4,0.66226786]
[1732381617217,8.31144339,3391.6,3389.7,0.2941]
[1732381617535,8.31144339,3391.5,3389.9,0.2941]
[1732381617739,8.31144339,3391.5,3390.1,0.2941]
[1732381617940,8.31144339,3391.5,3391.3,3.0]
[1732381618230,0.8322,3392.1,3390.2,1.12036786]
[1732381618231,8.3333532,3392.0,3390.2,1.12036786]
[1732381618539,8.31144339,3391.9,3390.2,1.12036786]
[1732381619036,8.31144339,3391.9,3390.5,0.2941]
[1732381619202,8.31144339,3391.9,3390.7,0.2941]
[1732381619396,8.31144339,3392.0,3391.8,0.2941]
[1732381619632,7.76144339,3392.6,3392.0,0.2941]
[1732381619851,7.76144339,3392.5,3392.3,0.8441]
[1732381620258,7.76144339,3392.8,3392.7,3.2941]
[1732381620854,7.17404339,3392.8,3392.7,0.2941]
[1732381621161,7.17404339,3392.8,3392.7,3.2941]
[1732381621462,7.17404339,3392.8,3392.7,0.2941]
[1732381621623,8.00624339,3392.8,3392.7,0.2941]
[1732381622328,7.17404339,3392.8,3391.5,0.2941]
[1732381622632,7.17404339,3392.7,3391.7,0.2941]
[1732381622959,0.02190981,3392.3,3391.7,0.2941]
[1732381623138,7.17404339,3392.2,3391.7,0.2941]
[1732381623351,7.17404339,3392.1,3391.7,0.2941]
[1732381623664,7.17404339,3392.0,3391.8,0.2941]
[1732381623817,7.17404339,3392.4,3391.8,0.66226786]
[1732381624023,7.17404339,3392.4,3391.9,1.0463]
[1732381624420,7.17404339,3392.4,3391.9,0.2941]
[1732381624615,6.62404339,3392.4,3391.6,0.66226786]
[1732381625363,6.62404339,3392.3,3391.6,0.2941]
[1732381625652,6.62404339,3392.6,3391.7,0.36816786]
[1732381625821,6.62404339,3392.6,3391.6,0.2941]
[1732381626020,6.62404339,3392.6,3391.9,3.0]
[1732381626216,6.62404339,3392.6,3391.9,3.2941]
[1732381626656,6.62404339,3392.6,3392.1,0.8441]
[1732381627172,6.62404339,3392.6,3392.3,0.2941]
[1732381627319,6.62404339,3392.6,3392.4,0.8441]
[1732381627523,6.62404339,3392.6,3392.4,0.55]
[1732381627727,6.62404339,3392.6,3392.3,0.55]
[1732381628045,0.03295088,3392.7,3392.4,0.2941]
[1732381628249,0.03295088,3392.7,3392.5,0.55]
[1732381628593,0.03295088,3392.7,3392.5,0.91816786]
[1732381628744,0.00495227,3392.7,3392.6,0.66226786]
[1732381628946,0.00495227,3392.7,3392.6,1.41446786]
[1732381629261,0.06088671,3392.9,3392.7,0.35324599]
[1732381629427,0.06088671,3392.9,3392.8,0.36816786]
[1732381629621,0.06088671,3392.9,3392.7,0.64734599]
[1732381629622,0.06088671,3392.9,3392.6,0.7522]
[1732381629860,6.07404339,3392.8,3392.7,3.0]
[1732381630120,6.07404339,3392.8,3391.6,1.12036786]
[1732381630326,1.0075,3392.4,3391.6,0.36816786]
[1732381630821,6.07404339,3392.3,3391.2,0.2941]
[1732381631022,6.0959532,3392.3,3391.2,0.36816786]
[1732381631595,6.07404339,3392.2,3390.9,0.36816786]
[1732381631879,6.07404339,3392.1,3391.2,0.36816786]
[1732381632082,6.07404339,3392.0,3391.2,0.36816786]
[1732381632407,0.02190981,3391.8,3390.5,0.7522]
[1732381633083,6.07404339,3391.9,3390.6,0.36816786]
[1732381633285,6.07404339,3391.9,3390.6,0.66226786]
[1732381634001,6.07404339,3391.9,3390.7,0.8441]
[1732381634299,6.07404339,3391.9,3390.8,0.36816786]
[1732381634493,6.07404339,3391.9,3390.9,0.55]
[1732381634806,6.07404339,3391.9,3390.9,0.8441]
[1732381634963,6.07404339,3391.9,3391.1,0.55]
[1732381635384,0.02060203,3391.7,3391.0,0.55]
[1732381635803,0.02060203,3391.7,3391.0,0.91816786]
[1732381636005,6.07404339,3391.9,3391.0,0.91816786]
[1732381636207,6.07404339,3391.9,3391.2,0.55]
[1732381636393,6.07404339,3391.8,3391.4,0.55]
[1732381636564,6.07404339,3391.8,3391.4,0.8441]
[1732381636897,6.07404339,3391.8,3391.6,0.55]
[1732381637115,6.07404339,3392.3,3391.7,0.36816786]
[1732381637409,6.07404339,3392.2,3391.9,0.2941]
[1732381637567,6.07404339,3392.8,3392.7,3.0]
[1732381637765,0.06088671,3392.9,3392.7,0.55]
[1732381638081,0.06088671,3392.9,3392.8,0.55]
[1732381638302,6.07404339,3393.7,3392.8,0.91816786]
[1732381638459,6.07404339,3394.4,3393.1,0.7522]
[1732381638727,7.10214542,3394.3,3394.1,0.55]
[1732381638860,0.02060203,3393.9,3392.7,0.55]
[1732381639114,6.07404339,3393.8,3393.7,0.55]
[1732381639264,6.07404339,3393.8,3393.7,3.55]
[1732381639465,6.07404339,3393.8,3393.7,0.55]
[1732381640184,0.02060203,3393.1,3392.7,0.2941]
[1732381640379,6.07404339,3393.0,3391.9,0.2941]
[1732381640633,6.07404339,3393.0,3391.1,3.0]
[1732381640634,0.02060203,3392.7,3391.2,0.7919]
[1732381640764,0.02060203,3392.5,3391.2,0.7919]
[1732381640959,0.02060203,3392.3,3391.2,0.7919]
[1732381641185,6.07404339,3392.2,3391.2,0.7919]
[1732381641388,0.1,3392.0,3390.8,0.2941]
[1732381641589,1.0075,3391.6,3390.7,0.2941]
[1732381641807,0.02060203,3391.3,3390.7,0.2941]
[1732381642017,0.02060203,3391.1,3390.3,0.36816786]
[1732381642163,0.02060203,3391.1,3389.9,0.7919]
[1732381642367,0.02060203,3390.7,3390.1,0.2941]
[1732381642598,0.02060203,3390.5,3390.1,0.2941]
[1732381642899,7.08154339,3390.6,3390.2,0.2941]
[1732381643104,0.02060203,3390.5,3390.2,0.2941]
[1732381643269,0.12060203,3390.5,3390.2,0.2941]
[1732381643467,0.1,3390.5,3389.5,0.2941]
[1732381643709,0.1,3390.5,3389.7,0.2941]
[1732381644006,7.08154339,3390.6,3389.8,0.36816786]
[1732381644007,6.07404339,3390.6,3389.8,0.36816786]
[1732381644503,6.07404339,3390.6,3389.9,0.55]
[1732381644806,6.07404339,3390.6,3389.8,0.36816786]
[1732381644987,6.07404339,3391.0,3390.1,0.7919]
[1732381645190,6.07404339,3391.0,3390.2,0.36816786]
[1732381645593,6.07404339,3390.9,3389.7,0.36816786]
[1732381645788,6.09464542,3390.9,3390.1,0.36816786]
[1732381646002,0.02060203,3390.7,3389.1,0.7919]
[1732381646244,6.07404339,3390.6,3389.4,0.36816786]
[1732381646682,6.07404339,3390.5,3389.4,0.36816786]
[1732381647005,6.07404339,3391.2,3389.5,1.10569316]
[1732381647204,6.07404339,3391.2,3389.6,0.36816786]
[1732381647415,6.07404339,3391.2,3389.7,0.55]
[1732381647710,6.07404339,3391.2,3389.9,0.55]
[1732381647869,6.07404339,3391.1,3389.9,0.91816786]
[1732381648069,0.02060203,3390.9,3390.0,0.36816786]
[1732381648267,1.0742,3390.6,3389.5,0.7919]
[1732381648507,0.02060203,3390.4,3389.1,0.75058805]
[1732381648720,0.02060203,3389.8,3388.5,0.7919]
[1732381648867,0.02060203,3390.0,3388.5,0.7919]
[1732381649071,6.07404339,3390.3,3388.6,0.36816786]
[1732381649379,0.02060203,3390.1,3388.6,0.36816786]
[1732381649708,6.19464542,3390.3,3388.6,0.36816786]
[1732381650028,6.09464542,3390.3,3388.6,0.36816786]
[1732381650397,6.19464542,3390.3,3388.6,0.36816786]
[1732381650598,6.09464542,3390.3,3388.7,0.55]
[1732381650924,0.02060203,3390.1,3388.9,0.55]
[1732381651122,6.07404339,3390.3,3389.1,0.55]
[1732381651300,6.07404339,3390.3,3389.2,0.36816786]
[1732381651500,6.07404339,3390.3,3389.3,0.55]
[1732381651725,6.07404339,3390.3,3389.3,0.91816786]
[1732381651920,0.02060203,3390.1,3389.4,0.36816786]
[1732381652223,0.02060203,3390.1,3388.5,4.52940366]
[1732381652224,1.0742,3389.5,3388.5,1.52940366]
[1732381652430,6.07404339,3389.4,3388.7,0.36816786]
[1732381652596,6.07404339,3389.4,3388.5,1.52940366]
[1732381652597,0.02060203,3389.0,3388.5,0.73750366]
[1732381652799,0.02060203,3389.2,3388.0,0.36816786]
[1732381652989,6.07404339,3389.3,3388.0,0.36816786]
[1732381653190,6.09464542,3389.2,3388.0,0.36816786]
[1732381653830,6.07404339,3389.2,3388.0,0.36816786]
[1732381654033,6.07404339,3389.1,3388.1,1.086]
[1732381654202,6.09464542,3389.1,3389.0,3.0]
[1732381654386,7.14824339,3389.1,3389.0,3.0]
[1732381654591,7.14824339,3389.1,3388.2,0.36816786]
[1732381654788,6.07404339,3389.1,3388.3,0.2941]
[1732381654993,6.07404339,3389.0,3388.5,0.2941]
[1732381655189,6.07404339,3389.0,3388.6,0.66226786]
[1732381655494,6.07404339,3389.0,3388.7,0.55]
[1732381655712,6.07404339,3389.0,3388.9,0.55]
[1732381656118,6.07404339,3389.0,3388.7,0.55]
[1732381656316,6.07404339,3389.0,3388.2,0.74213465]
[1732381656533,6.07404339,3389.0,3387.9,1.16006786]
[1732381656534,6.07404339,3389.0,3388.0,0.44690819]
[1732381656725,6.07404339,3388.9,3388.0,0.44690819]
[1732381657669,0.02060203,3388.6,3388.0,0.44690819]
[1732381657934,0.02060203,3388.4,3388.0,0.44690819]
[1732381658136,0.02060203,3388.4,3387.1,0.2941]
[1732381658344,0.12060203,3388.1,3386.3,0.7919]
[1732381658634,0.02060203,3388.1,3386.9,0.36816786]
[1732381658821,0.12060203,3388.1,3386.9,0.36816786]
[1732381659202,0.12060203,3388.1,3386.9,0.66226786]
[1732381659403,0.02060203,3387.6,3386.3,0.7919]
[1732381659615,0.02060203,3387.3,3385.8,0.7919]
[1732381659904,1.0742,3387.0,3386.1,0.36816786]
[1732381660648,6.07404339,3387.2,3386.1,0.36816786]
[1732381660948,6.07404339,3387.1,3386.4,0.7919]
[1732381661298,6.07404339,3387.1,3386.8,3.005]
[1732381661743,6.07404339,3387.0,3386.8,0.005]
[1732381662742,6.09464542,3387.0,3386.8,0.005]
[1732381663322,6.07404339,3387.0,3386.8,0.37316786]
[1732381663944,2.94805,3392.1,3386.8,0.37316786]
[1732381663945,5.78034339,3387.3,3387.0,0.2941]
[1732381664143,1.09480203,3388.4,3387.7,0.2941]
[1732381664355,8.89,3388.3,3388.1,0.2941]
[1732381664641,8.89,3388.3,3388.2,0.55]
[1732381665004,8.99,3388.3,3388.2,0.55]
[1732381665854,0.1,3388.1,3387.5,3.2941]
[1732381666005,1.1201,3388.2,3387.5,0.2941]
[1732381666209,0.02060203,3387.8,3387.6,0.2941]
[1732381666517,1.0201,3388.2,3387.6,3.2941]
[1732381666858,1.0201,3388.2,3387.6,0.2941]
[1732381667155,0.1,3390.1,3386.8,1.10839921]
[1732381667156,8.89,3388.1,3388.0,0.8441]
[1732381672248,8.88972005,3388.6,3388.4,0.2941]
[1732381672454,8.88972005,3388.5,3388.4,0.8441]
[1732381672665,8.88972005,3389.1,3388.4,2.00994536]
[1732381672827,8.88972005,3389.0,3388.8,0.2941]
[1732381673029,0.02060203,3390.2,3388.9,0.99641322]
[1732381673261,0.02060203,3390.2,3389.1,0.2941]
[1732381673578,0.02060203,3390.2,3389.9,0.55]
[1732381673726,8.89,3390.1,3390.0,0.8441]
[1732381674082,8.89,3390.1,3389.8,0.55]
[1732381674369,8.89,3390.1,3390.0,3.55]
[1732381674733,8.89,3390.1,3390.0,0.55]
[1732381674967,8.89,3390.1,3389.7,0.55]
[1732381675138,8.89,3390.1,3389.4,0.8317]
[1732381675139,8.89,3390.1,3389.5,0.55]
[1732381675339,8.89,3390.1,3389.8,0.55]
[1732381675863,8.89,3390.1,3389.9,0.55]
[1732381676335,8.89,3390.1,3390.0,0.55]
[1732381676529,8.89,3390.4,3390.0,0.91816786]
[1732381676736,8.89,3390.4,3390.0,0.55]
[1732381677036,8.89,3390.4,3390.0,0.91816786]
[1732381677585,8.89,3390.6,3390.2,0.55]
[1732381677876,8.89,3390.6,3389.5,3.2941]
[1732381677877,8.89,3390.6,3390.4,0.55]
[1732381678043,8.89,3390.6,3390.5,0.36816786]
[1732381678376,8.89,3390.6,3390.5,1.25231322]
[1732381678729,8.89,3390.6,3390.4,0.55]
[1732381678927,8.89,3391.4,3390.6,0.55]
[1732381679130,8.89,3391.5,3390.8,0.55]
[1732381679363,8.89,3391.9,3391.5,0.55]
[1732381679732,8.89,3391.9,3391.7,0.55]
[1732381680485,8.89,3391.9,3391.7,0.91816786]
[1732381680628,9.9901602,3391.9,3391.8,0.55]
[1732381680834,0.12060203,3391.1,3389.4,0.8317]
[1732381681086,10.00160203,3391.0,3389.5,0.36816786]
[1732381681247,10.00160203,3391.0,3389.6,0.8317]
[1732381681248,8.89,3391.0,3389.6,0.8317]
[1732381681444,8.89,3391.3,3389.9,0.2941]
[1732381681628,8.89,3391.3,3390.1,0.2941]
[1732381681979,8.89,3392.1,3390.5,1.1258]
[1732381682132,8.89,3392.0,3390.7,0.2941]
[1732381682465,8.89,3392.0,3390.9,0.8317]
[1732381682673,8.89,3392.0,3391.0,0.93733453]
[1732381683162,0.12060203,3391.9,3391.0,0.55]
[1732381683573,1.091,3391.8,3391.0,0.55]
[1732381683732,1.091,3391.8,3390.3,0.8317]
[1732381683733,0.1,3390.7,3389.7,1.25133681]
[1732381684046,0.1,3390.7,3389.8,0.38733453]
[1732381684047,8.89,3390.6,3389.8,0.38733453]
[1732381684570,8.89,3390.6,3389.8,0.2941]
[1732381684571,0.1,3389.9,3389.8,0.2941]
[1732381684768,10.10160203,3389.9,3389.7,0.41963681]
[1732381684932,8.89,3389.8,3389.7,0.41963681]
[1732381685128,0.12060203,3389.3,3388.1,0.8317]
[1732381685333,0.02060203,3389.1,3388.9,0.2941]
[1732381685563,8.89,3389.0,3388.9,0.68143453]
[1732381685773,8.91060203,3389.0,3388.9,0.68143453]
[1732381685928,8.5959,3388.9,3387.8,0.38733453]
[1732381686133,0.02060203,3388.2,3387.5,0.8317]
[1732381686465,8.5959,3388.1,3387.7,0.2941]
[1732381686666,8.5959,3388.1,3387.9,0.2941]
[1732381686830,8.0459,3388.1,3388.0,0.68143453]
[1732381687039,8.0459,3388.6,3388.0,0.68143453]
[1732381687349,8.0459,3388.6,3388.2,0.2941]
[1732381687677,8.0459,3389.4,3388.4,0.2941]
[1732381687855,8.0459,3389.3,3388.6,0.2941]
[1732381688060,0.02060203,3389.1,3388.8,0.2941]
[1732381688274,8.0459,3389.3,3389.0,0.2941]
[1732381688433,8.06650203,3389.3,3389.2,0.2941]
[1732381688835,0.02060203,3389.1,3388.6,0.55]
[1732381689036,0.02060203,3388.7,3388.6,0.38733453]
[1732381689237,0.02060203,3388.4,3387.7,0.38733453]
[1732381689468,8.0459,3388.3,3387.7,0.38733453]
[1732381690153,0.02060203,3388.2,3387.7,0.38733453]
[1732381690474,8.0459,3388.3,3387.7,0.38733453]
[1732381690766,8.06650203,3388.3,3387.7,0.38733453]
[1732381690981,8.0459,3388.3,3387.7,0.38733453]
[1732381691303,8.0459,3388.2,3387.7,0.38733453]
[1732381691491,7.51639901,3388.2,3387.7,0.38733453]
[1732381691769,7.51639901,3388.5,3387.8,0.8317]
[1732381691976,7.51639901,3388.5,3387.9,0.38733453]
[1732381692136,7.51639901,3388.5,3388.0,0.55]
[1732381692339,7.51639901,3388.5,3388.1,0.38733453]
[1732381692536,7.51639901,3388.5,3388.2,0.55]
[1732381692773,7.51639901,3388.4,3387.3,1.56749593]
[1732381692971,7.51639901,3388.4,3387.9,0.38733453]
[1732381693176,7.51639901,3388.7,3387.9,0.38733453]
[1732381693375,7.51639901,3388.7,3388.0,0.8317]
[1732381693743,7.51639901,3388.7,3388.1,0.72147989]
[1732381693945,6.74599333,3388.7,3388.2,0.55]
[1732381694241,6.74599333,3388.7,3388.4,0.55]
[1732381694465,6.74599333,3388.7,3388.0,0.8317]
[1732381694466,6.74599333,3389.4,3389.3,0.55]
[1732381694670,7.79329333,3389.4,3389.3,0.55]
[1732381694869,7.79329333,3389.4,3387.0,1.75079104]
[1732381694870,0.1,3388.7,3387.2,0.8317]
[1732381695098,1.06790203,3388.4,3387.2,1.21903453]
[1732381695307,1.06790203,3388.4,3387.3,0.38733453]
[1732381695472,1.06659015,3388.4,3387.3,0.38733453]
[1732381695670,0.01929015,3388.1,3387.3,0.38733453]
[1732381695874,0.01929015,3387.9,3387.3,0.38733453]
[1732381696090,6.74599333,3387.8,3387.3,0.38733453]